bitfinex/quotes_SOLUSD_20241117
["timestamp","ask_amount","ask_price","bid_price","bid_amount"]
[1731817267032,36.69420368,232.43,232.31,36.69420368]
[1731817267233,36.69420368,232.43,232.33,36.69420368]
[1731817267429,4.3015,232.48,232.33,36.69420368]
[1731817267430,0.09367462,232.44,232.33,36.69420368]
[1731817267636,0.09367462,232.4,232.29,36.69420368]
[1731817267934,4.4015,232.48,232.16,30.7244]
[1731817267935,36.69420368,232.45,232.33,36.69420368]
[1731817268363,0.09367462,232.43,232.33,36.69420368]
[1731817268537,0.09367462,232.44,232.33,36.69420368]
[1731817269160,36.69420368,232.51,232.39,36.69420368]
[1731817269454,4.3,232.56,232.26,36.79420368]
[1731817269455,36.69420368,232.47,232.35,36.69420368]
[1731817269655,36.69420368,232.45,232.35,36.69420368]
[1731817269955,0.09367462,232.44,232.35,36.69420368]
[1731817270145,0.09367462,232.44,232.33,36.69420368]
[1731817270537,0.09367462,232.44,232.35,36.69420368]
[1731817270761,36.69420368,232.47,232.35,36.69420368]
[1731817271260,36.69420368,232.47,232.26,36.69420368]
[1731817271261,12.2349,232.5,232.39,36.69420368]
[1731817271453,12.2349,232.5,232.43,36.69420368]
[1731817272141,36.69420368,232.47,232.35,36.69420368]
[1731817272446,36.69420368,232.37,232.27,36.69420368]
[1731817272646,0.09367462,232.36,232.27,36.69420368]
[1731817272845,0.05,232.29,232.21,36.69420368]
[1731817273043,0.05,232.29,232.25,36.69420368]
[1731817273243,0.05,232.29,232.28,36.69420368]
[1731817273542,0.05,232.29,232.24,36.69420368]
[1731817273754,0.05,232.29,232.22,36.69420368]
[1731817274246,0.09367462,232.25,232.16,36.69420368]
[1731817274450,0.09367462,232.25,232.14,36.69420368]
[1731817274843,0.09367462,232.22,232.12,36.69420368]
[1731817275042,0.09367462,232.22,232.05,36.69420368]
[1731817275043,36.69420368,232.15,232.05,36.69420368]
[1731817275265,36.69420368,232.09,231.97,36.69420368]
[1731817275564,0.09367462,232.06,231.95,36.69420368]
[1731817275760,13.3152,232.05,231.95,36.69420368]
[1731817276468,50.00940368,232.05,231.93,36.69420368]
[1731817276763,13.3152,232.05,231.97,36.69420368]
[1731817276939,50.00940368,232.05,231.93,36.69420368]
[1731817277142,36.69420368,231.98,231.84,0.6904329]
[1731817277344,13.3152,231.84,231.66,36.69420368]
[1731817277552,36.69420368,231.78,231.63,70.0]
[1731817277745,36.69420368,231.74,231.62,36.69420368]
[1731817277961,13.3152,231.84,231.55,0.1]
[1731817277962,0.34465462,231.81,231.6,36.69420368]
[1731817278162,36.69420368,231.69,231.56,36.69420368]
[1731817278363,36.69420368,231.73,231.6,36.69420368]
[1731817278545,36.69420368,231.75,231.62,36.69420368]
[1731817278864,36.69420368,231.73,231.6,36.69420368]
[1731817279054,36.69420368,231.71,231.6,36.69420368]
[1731817279263,4.43939,231.81,231.29,5.26052357]
[1731817279264,23.902374,231.56,231.29,5.26052357]
[1731817279558,36.69420368,231.69,231.54,36.69420368]
[1731817279763,36.69420368,231.69,231.58,36.69420368]
[1731817280071,36.69420368,231.61,231.49,36.69420368]
[1731817280254,0.09367462,231.58,231.47,36.69420368]
[1731817280452,36.69420368,231.61,231.47,36.69420368]
[1731817280651,36.69420368,231.55,231.4,70.0]
[1731817280856,36.69420368,231.53,231.35,70.0]
[1731817281057,36.69420368,231.53,231.15,32.1939]
[1731817281058,36.69420368,231.49,231.37,36.69420368]
[1731817281244,0.09367462,231.46,231.35,36.69420368]
[1731817281571,36.69420368,231.47,231.35,36.69420368]
[1731817281751,8.32275596,231.64,231.39,36.69420368]
[1731817281752,36.69420368,231.51,231.39,36.69420368]
[1731817282063,36.69420368,231.47,231.37,36.69420368]
[1731817282281,0.09367462,231.46,231.35,36.69420368]
[1731817282473,36.69420368,231.56,231.31,36.69420368]
[1731817282474,36.69420368,231.41,231.31,36.69420368]
[1731817282676,36.69420368,231.43,231.33,36.69420368]
[1731817282850,36.69420368,231.46,231.35,36.69420368]
[1731817283054,36.69420368,231.46,231.37,36.69420368]
[1731817283259,0.09367462,231.37,231.22,36.69420368]
[1731817283447,36.69420368,231.33,231.22,36.69420368]
[1731817283850,0.09367462,231.3,231.2,36.69420368]
[1731817284057,37.15542263,231.3,231.15,37.06174801]
[1731817284372,37.15542263,231.3,231.13,37.06174801]
[1731817284572,4.3226,231.34,231.13,37.06174801]
[1731817284753,37.06174801,231.39,231.28,37.06174801]
[1731817284949,37.06174801,231.35,231.24,37.06174801]
[1731817285160,37.06174801,231.35,231.25,37.06174801]
[1731817285355,37.06174801,231.37,231.27,37.06174801]
[1731817285566,37.06174801,231.39,231.19,70.0]
[1731817285753,37.06174801,231.39,231.29,37.06174801]
[1731817286072,37.06174801,231.41,231.31,37.06174801]
[1731817286261,37.06174801,231.37,231.26,37.06174801]
[1731817286461,0.1,231.5,231.33,37.06174801]
[1731817286766,37.06174801,231.51,231.4,37.06174801]
[1731817287074,37.06174801,231.47,231.38,37.06174801]
[1731817287266,37.06174801,231.49,231.38,37.06174801]
[1731817287447,37.06174801,231.51,231.4,37.06174801]
[1731817287772,37.06174801,231.51,231.41,37.06174801]
[1731817287950,37.06174801,231.51,231.29,23.776884]
[1731817287951,37.06174801,231.46,231.29,23.776884]
[1731817288265,37.06174801,231.44,231.33,37.06174801]
[1731817288466,37.06174801,231.42,231.33,37.06174801]
[1731817288672,37.06174801,231.44,231.33,37.06174801]
[1731817288874,37.06174801,231.42,231.33,37.06174801]
[1731817289079,37.06174801,231.42,231.31,37.06174801]
[1731817289377,23.87055862,231.5,231.22,70.1]
[1731817289378,37.06174801,231.38,231.29,37.06174801]
[1731817289669,37.06174801,231.4,231.29,37.06174801]
[1731817289978,0.09367462,231.29,231.17,0.6904329]
[1731817290278,37.06174801,231.23,231.17,0.6904329]
[1731817290455,37.06174801,231.21,231.17,0.6904329]
[1731817290784,37.06174801,231.23,231.17,0.6904329]
[1731817291155,37.06174801,231.19,231.17,0.6904329]
[1731817291673,0.1,231.12,231.02,22.76843551]
[1731817291967,23.902374,231.18,231.03,37.06174801]
[1731817292169,37.06174801,231.12,231.02,59.83018352]
[1731817292374,23.776884,231.14,231.02,22.76843551]
[1731817292557,37.06174801,231.06,231.02,22.76843551]
[1731817292755,37.06174801,231.08,231.02,22.76843551]
[1731817292957,37.06174801,231.06,231.02,22.76843551]
[1731817293265,60.83863201,231.14,231.02,20.83591013]
[1731817293266,37.06174801,231.1,231.02,20.83591013]
[1731817293457,37.06174801,231.08,231.02,20.83591013]
[1731817293651,37.06174801,231.06,231.02,20.83591013]
[1731817293853,37.06174801,231.11,231.02,20.83591013]
[1731817294048,37.06174801,231.07,231.02,20.83591013]
[1731817294261,37.06174801,231.05,231.02,20.83591013]
[1731817294463,37.06174801,231.03,231.02,20.83591013]
[1731817295082,37.15542263,231.03,231.02,20.78591013]
[1731817295370,0.12549,230.99,230.77,0.7225578]
[1731817295556,37.06174801,230.91,230.8,37.06174801]
[1731817295959,37.06174801,230.93,230.82,37.06174801]
[1731817296159,37.06174801,230.97,230.78,70.0]
[1731817296372,37.06174801,230.97,230.77,0.8225578]
[1731817296373,37.06174801,230.93,230.84,37.06174801]
[1731817296569,37.06174801,231.03,230.92,37.06174801]
[1731817296779,37.06174801,231.01,230.9,37.06174801]
[1731817296957,37.06174801,230.99,230.9,37.06174801]
[1731817297158,37.06174801,231.02,230.9,37.06174801]
[1731817297461,32.9594,231.1,230.9,37.06174801]
[1731817297462,37.06174801,231.0,230.9,37.06174801]
[1731817297652,37.06174801,230.98,230.88,37.06174801]
[1731817297858,37.06174801,231.0,230.88,37.06174801]
[1731817298158,37.06174801,230.97,230.86,37.06174801]
[1731817298358,37.06174801,230.93,230.86,0.1]
[1731817298670,37.06174801,230.99,230.9,0.1]
[1731817298879,37.06174801,231.01,230.95,0.1]
[1731817299362,37.06174801,231.06,230.99,0.1]
[1731817299674,0.1,231.23,231.03,0.1]
[1731817299883,21.6165,231.31,230.9,70.1]
[1731817299884,0.1,231.22,231.02,0.1]
[1731817300068,16.3927,231.15,231.0,0.1]
[1731817300276,16.3927,231.15,230.84,0.1]
[1731817300277,12.0664,231.15,230.98,0.1]
[1731817300478,12.0664,231.15,231.02,0.1]
[1731817300772,37.06174801,231.1,231.03,0.1]
[1731817300962,37.06174801,231.1,231.08,0.1]
[1731817301161,37.06174801,231.1,231.03,0.1]
[1731817301965,37.06174801,231.18,231.09,0.1]
[1731817302169,37.06174801,231.16,231.11,0.1]
[1731817302359,37.06174801,231.12,231.03,0.1]
[1731817302566,37.06174801,231.07,231.03,0.1]
[1731817302774,37.06174801,231.09,231.03,0.1]
[1731817303081,37.06174801,231.05,230.98,5.1]
[1731817303384,37.06174801,231.02,230.98,5.0]
[1731817303676,8.1308417,231.26,231.09,70.1]
[1731817303884,37.06174801,231.3,231.19,37.06174801]
[1731817304067,0.1,231.31,231.11,0.1]
[1731817304392,6.75437696,231.33,231.16,0.1]
[1731817304690,4.323,231.32,231.19,0.1]
[1731817304867,4.322,231.37,231.19,0.1]
[1731817305184,4.322,231.37,230.87,30.1342]
[1731817305185,6.75310235,231.4,231.32,0.1]
[1731817305361,37.06174801,231.39,231.32,0.1]
[1731817305563,37.06174801,231.39,231.29,0.1]
[1731817306082,37.06174801,231.35,231.29,0.1]
[1731817306283,37.06174801,231.31,231.25,0.1]
[1731817306468,37.06174801,231.33,231.27,0.1]
[1731817306663,37.06174801,231.35,231.27,0.1]
[1731817306877,37.06174801,231.37,231.29,0.1]
[1731817307085,12.0664,231.44,231.24,37.06174801]
[1731817307334,4.3196,231.51,231.35,37.06174801]
[1731817307463,10.7964,231.56,231.45,0.1]
[1731817307464,37.06174801,231.52,231.45,0.1]
[1731817307663,37.06174801,231.52,231.47,0.1]
[1731817307874,0.1,231.52,231.3,0.1]
[1731817308076,37.06174801,231.4,231.36,0.1]
[1731817308281,37.06174801,231.38,231.29,0.1]
[1731817308576,37.06174801,231.44,231.36,0.1]
[1731817308779,37.06174801,231.44,231.29,5.0]
[1731817308780,37.06174801,231.46,231.39,0.1]
[1731817308983,37.06174801,231.51,231.42,0.1]
[1731817309190,37.06174801,231.51,231.43,0.1]
[1731817309884,15.1155,231.52,231.43,37.16174801]
[1731817310199,15.1155,231.52,231.5,0.1]
[1731817310497,0.09367462,231.59,231.5,0.1]
[1731817310793,37.06174801,231.55,231.43,37.16174801]
[1731817310987,6.74772802,231.62,231.43,0.1]
[1731817310988,37.06174801,231.53,231.43,0.1]
[1731817311691,37.06174801,231.51,231.43,0.1]
[1731817312264,37.06174801,231.55,231.45,37.06174801]
[1731817312466,37.06174801,231.59,231.53,0.1]
[1731817312677,37.06174801,231.59,231.48,0.1]
[1731817312886,37.06174801,231.59,231.36,0.1]
[1731817312887,37.06174801,231.59,231.5,0.1]
[1731817313184,17.266442,231.58,231.51,0.1]
[1731817313376,17.266442,231.58,231.5,0.1]
[1731817313577,17.266442,231.58,231.53,0.1]
[1731817313772,17.266442,231.58,231.51,37.16174801]
[1731817313970,17.266442,231.58,231.52,0.1]
[1731817314177,17.266442,231.58,231.56,0.1]
[1731817314368,17.266442,231.58,231.51,37.06174801]
[1731817314369,17.266442,231.58,231.53,0.1]
[1731817314690,37.06174801,231.63,231.54,0.1]
[1731817314879,37.06174801,231.65,231.55,37.06174801]
[1731817315080,17.261284,231.62,231.55,37.06174801]
[1731817315291,17.261284,231.62,231.54,0.1]
[1731817316487,17.261284,231.62,231.55,37.06174801]
[1731817316876,37.06174801,231.59,231.51,5.0]
[1731817317072,37.06174801,231.56,231.51,5.0]
[1731817317383,37.06174801,231.6,231.54,0.1]
[1731817317565,37.06174801,231.6,231.51,4.97044906]
[1731817317885,17.261284,231.62,231.51,4.97044906]
[1731817317886,54.32303201,231.62,231.52,37.06174801]
[1731817318484,17.261284,231.62,231.58,37.06174801]
[1731817318787,37.06174801,231.7,231.6,37.06174801]
[1731817319379,4.3148,231.76,231.58,37.06174801]
[1731817319584,4.3148,231.76,231.51,5.07044906]
[1731817319585,37.06174801,231.74,231.64,37.06174801]
[1731817319769,37.06174801,231.76,231.67,37.06174801]
[1731817319971,37.06174801,231.7,231.61,37.06174801]
[1731817320285,0.09367462,231.73,231.51,4.97044906]
[1731817320473,0.48853939,231.61,231.51,4.97044906]
[1731817320988,0.48853939,231.61,231.52,0.1]
[1731817321293,4.3155,231.69,231.6,107.26174801]
[1731817321479,4.3155,231.69,231.56,37.06174801]
[1731817321480,37.06174801,231.78,231.68,37.06174801]
[1731817321690,37.06174801,231.71,231.61,37.06174801]
[1731817321989,0.09367462,231.62,231.51,42.03219707]
[1731817322318,0.1,231.71,231.51,42.03219707]
[1731817322319,0.1,231.76,231.51,4.97044906]
[1731817322590,0.09367462,231.74,231.51,4.97044906]
[1731817323097,0.21916462,231.69,231.51,4.97044906]
[1731817323285,0.09367462,231.66,231.57,37.06174801]
[1731817323494,37.06174801,231.73,231.63,37.06174801]
[1731817323704,12.583544,231.75,231.56,37.06174801]
[1731817323705,12.583544,231.75,231.69,37.06174801]
[1731817323984,0.09367462,231.76,231.67,37.06174801]
[1731817324190,0.1,231.74,231.57,3.58]
[1731817324376,5.8299725,231.76,231.57,3.58]
[1731817324575,6.75357074,231.8,231.57,3.58]
[1731817324576,4.3144,231.73,231.57,3.58]
[1731817324779,4.3123,231.89,231.59,0.1]
[1731817325087,6.753571,231.8,231.6,3.58]
[1731817325388,37.06174801,231.75,231.64,37.06174801]
[1731817325567,0.09367462,231.68,231.6,3.58]
[1731817325773,37.06174801,231.66,231.6,3.58]
[1731817325999,37.06174801,231.62,231.53,37.06174801]
[1731817326174,37.06174801,231.62,231.54,5.59]
[1731817326487,37.06174801,231.62,231.51,42.03219707]
[1731817326691,23.776884,231.63,231.53,37.06174801]
[1731817326897,23.776884,231.65,231.53,37.06174801]
[1731817327087,0.09367462,231.63,231.53,37.06174801]
[1731817327298,37.06174801,231.64,231.53,37.06174801]
[1731817327474,23.776884,231.62,231.51,4.97044906]
[1731817327674,37.15542263,231.59,231.51,4.97044906]
[1731817327880,23.902374,231.6,231.51,4.97044906]
[1731817327881,0.09367462,231.54,231.51,4.97044906]
[1731817328186,37.06174801,231.53,231.51,4.97044906]
[1731817328388,0.09367462,231.52,231.51,4.97044906]
[1731817328692,0.21916462,231.46,231.29,10.0]
[1731817328988,0.21916462,231.3,231.29,10.0]
[1731817329176,37.06174801,231.31,231.29,10.0]
[1731817329377,0.12549,231.33,231.29,10.0]
[1731817329586,23.776884,231.34,231.29,10.0]
[1731817329899,37.06174801,231.37,231.29,10.0]
[1731817330078,60.83863201,231.4,231.29,10.0]
[1731817330277,37.06174801,231.38,231.29,10.0]
[1731817330475,0.12549,231.39,231.29,10.0]
[1731817330476,23.87055862,231.35,231.29,10.0]
[1731817330674,8.1741444,231.41,231.29,10.0]
[1731817330988,0.25098,231.39,231.29,10.0]
[1731817331205,0.09367462,231.36,231.29,10.0]
[1731817331577,23.776884,231.4,231.29,10.0]
[1731817331790,37.06174801,231.42,231.31,37.06174801]
[1731817332089,37.06174801,231.48,231.37,37.06174801]
[1731817332401,37.06174801,231.52,231.41,37.06174801]
[1731817332579,37.06174801,231.54,231.41,37.06174801]
[1731817333191,37.06174801,231.52,231.41,37.06174801]
[1731817333387,37.06174801,231.52,231.41,37.01606231]
[1731817333584,37.06174801,231.58,231.47,37.06174801]
[1731817333789,12.3147,231.68,231.51,37.06174801]
[1731817333790,37.06174801,231.62,231.51,37.06174801]
[1731817333972,16.631,231.68,231.51,37.06174801]
[1731817334172,16.631,231.68,231.36,70.0]
[1731817334173,37.06174801,231.56,231.45,37.06174801]
[1731817334376,37.06174801,231.56,231.47,37.06174801]
[1731817334695,37.06174801,231.56,231.45,37.06174801]
[1731817334893,37.06174801,231.58,231.47,37.06174801]
[1731817335283,0.09367462,231.57,231.37,0.1]
[1731817335598,37.06174801,231.6,231.49,37.06174801]
[1731817335988,37.06174801,231.62,231.49,37.06174801]
[1731817336201,0.09367462,231.56,231.47,37.06174801]
[1731817336783,37.06174801,231.55,231.45,37.06174801]
[1731817336999,0.09367462,231.54,231.43,37.06174801]
[1731817337199,37.06174801,231.45,231.37,5.0]
[1731817337505,23.776884,231.54,231.42,37.06174801]
[1731817337682,0.09367462,231.52,231.42,37.06174801]
[1731817337886,0.12549,231.6,231.37,5.0]
[1731817338101,12.3147,231.68,231.46,0.1]
[1731817338401,37.06174801,231.73,231.61,37.06174801]
[1731817338616,0.1,231.62,231.4,37.06174801]
[1731817338784,37.06174801,231.48,231.37,5.0]
[1731817339099,6.85752309,231.65,231.37,5.0]
[1731817339100,0.1,231.61,231.37,5.0]
[1731817339317,0.1,231.55,231.37,5.0]
[1731817339613,12.3147,231.57,231.43,5.0]
[1731817339790,0.25098,231.56,231.43,5.0]
[1731817340102,0.12549,231.55,231.43,5.0]
[1731817340293,37.06174801,231.46,231.43,5.0]
[1731817340796,37.06174801,231.5,231.43,5.0]
[1731817340994,37.06174801,231.52,231.43,5.0]
[1731817341219,4.317,231.64,231.43,5.0]
[1731817341386,37.06174801,231.54,231.43,42.06174801]
[1731817341579,4.317,231.64,231.43,42.06174801]
[1731817341580,37.06174801,231.56,231.43,42.06174801]
[1731817342088,8.06188621,231.67,231.43,42.06174801]
[1731817342089,0.1,231.87,231.57,0.1]
[1731817342288,37.06174801,231.81,231.71,37.06174801]
[1731817342504,37.06174801,231.79,231.67,37.06174801]
[1731817342802,37.06174801,231.79,231.69,37.06174801]
[1731817343007,37.06174801,231.86,231.74,37.06174801]
[1731817343185,37.06174801,231.88,231.77,37.06174801]
[1731817343799,37.06174801,231.9,231.79,37.06174801]
[1731817343999,0.7225578,231.98,231.89,37.06174801]
[1731817344204,17.23183,232.1,231.97,37.06174801]
[1731817344505,37.06174801,232.17,231.96,0.1]
[1731817344733,37.06174801,232.17,232.05,37.06174801]
[1731817345001,0.8225578,232.33,231.98,0.1]
[1731817345002,37.06174801,232.18,232.08,37.06174801]
[1731817345708,37.06174801,232.23,232.1,37.06174801]
[1731817345885,37.06174801,232.25,232.14,37.06174801]
[1731817346084,5.0268578,232.33,232.12,37.06174801]
[1731817346085,37.06174801,232.23,232.12,37.06174801]
[1731817346286,0.7225578,232.33,232.12,37.06174801]
[1731817346287,37.06174801,232.25,232.12,37.06174801]
[1731817346487,37.06174801,232.27,232.14,37.06174801]
[1731817346696,0.7225578,232.33,232.24,37.06174801]
[1731817346893,0.7225578,232.33,232.27,37.06174801]
[1731817347310,0.7225578,232.33,232.29,37.06174801]
[1731817347903,0.7225578,232.33,232.27,37.06174801]
[1731817348094,0.7225578,232.33,232.13,24.027864]
[1731817348095,0.7225578,232.33,232.31,37.06174801]
[1731817348291,37.06174801,232.51,232.37,0.1]
[1731817348500,37.06174801,232.6,232.43,0.1]
[1731817348693,13.1132578,232.68,232.43,0.1]
[1731817348891,0.1,232.66,232.4,0.1]
[1731817349200,13.1132578,232.68,232.42,0.1]
[1731817349511,13.1132578,232.68,232.43,0.1]
[1731817349687,37.06174801,232.63,232.51,37.06174801]
[1731817349889,37.06174801,232.55,232.43,37.06174801]
[1731817350094,37.06174801,232.59,232.47,37.06174801]
[1731817350408,56.90446205,232.68,232.4,37.16174801]
[1731817350409,0.7225578,232.68,232.52,0.1]
[1731817350711,0.7225578,232.68,232.51,23.902374]
[1731817351013,0.7225578,232.68,232.54,0.12549]
[1731817351211,0.7225578,232.68,232.51,23.776884]
[1731817351212,0.7225578,232.68,232.51,0.1]
[1731817351510,0.7225578,232.68,232.52,0.22549]
[1731817351683,0.09367462,232.64,232.53,37.06174801]
[1731817351889,37.06174801,232.55,232.44,37.06174801]
[1731817352087,37.06174801,232.55,232.42,37.06174801]
[1731817352288,4.2992,232.6,232.4,37.06174801]
[1731817352500,0.1,232.62,232.36,0.1]
[1731817352703,0.09367462,232.57,232.33,0.1]
[1731817352888,0.09367462,232.57,232.3,0.1]
[1731817353307,23.776884,232.63,232.38,0.1]
[1731817353499,37.06174801,232.54,232.42,37.06174801]
[1731817353696,37.06174801,232.55,232.53,5.0]
[1731817354015,37.06174801,232.63,232.53,5.0]
[1731817354189,37.06174801,232.57,232.53,5.0]
[1731817354388,0.7225578,232.68,232.53,5.0]
[1731817354916,0.3585156,232.68,232.53,5.0]
[1731817355502,37.06174801,232.65,232.53,5.0]
[1731817355703,37.06174801,232.6,232.53,5.0]
[1731817355900,0.3585156,232.68,232.54,0.09367462]
[1731817356099,0.3585156,232.68,232.53,5.0]
[1731817356302,0.3585156,232.68,232.57,37.06174801]
[1731817356509,0.3585156,232.68,232.58,70.1]
[1731817356699,0.3585156,232.68,232.61,70.1]
[1731817356899,0.3585156,232.68,232.67,37.06174801]
[1731817358195,0.3585156,232.68,232.48,0.1]
[1731817358517,37.06174801,232.65,232.53,42.06174801]
[1731817358815,0.3585156,232.68,232.53,5.0]
[1731817358816,37.06174801,232.63,232.53,5.0]
[1731817359015,37.06174801,232.65,232.53,42.06174801]
[1731817359193,0.3585156,232.68,232.53,5.0]
[1731817359194,37.06174801,232.59,232.53,5.0]
[1731817359394,37.06174801,232.55,232.53,5.0]
[1731817359613,37.06174801,232.57,232.53,5.0]
[1731817359800,0.12549,232.54,232.53,5.0]
[1731817359994,37.06174801,232.55,232.53,5.0]
[1731817360405,37.06174801,232.63,232.53,5.0]
[1731817360634,0.3585156,232.68,232.58,37.06174801]
[1731817360795,0.3585156,232.68,232.62,37.06174801]
[1731817360996,0.3585156,232.68,232.53,5.0]
[1731817361195,0.09367462,232.67,232.53,5.0]
[1731817361395,0.09367462,232.6,232.53,5.0]
[1731817361614,0.1,232.64,232.53,5.0]
[1731817361615,0.1,232.63,232.53,5.0]
[1731817361813,0.1,232.55,232.23,70.1]
[1731817362018,37.06174801,232.38,232.26,37.06174801]
[1731817362692,37.06174801,232.38,231.88,8.30339323]
[1731817362693,20.0,232.53,232.32,37.06174801]
[1731817362929,37.06174801,232.49,232.36,37.06174801]
[1731817363212,37.06174801,232.52,232.4,37.06174801]
[1731817363414,37.06174801,232.52,232.38,37.06174801]
[1731817363804,37.06174801,232.46,232.33,37.06174801]
[1731817364217,37.06174801,232.42,232.29,37.06174801]
[1731817365018,37.06174801,232.46,232.25,70.19367462]
[1731817365203,37.06174801,232.41,232.29,37.06174801]
[1731817365404,37.06174801,232.39,232.27,37.06174801]
[1731817365719,0.09367462,232.38,232.13,70.1]
[1731817365897,0.12549,232.41,232.17,70.1]
[1731817366096,0.22549,232.41,232.12,37.06174801]
[1731817366293,0.09367462,232.36,232.1,70.0]
[1731817366501,0.44465462,232.3,231.98,70.0]
[1731817366710,37.06174801,232.16,232.04,37.06174801]
[1731817366898,37.06174801,232.14,232.04,37.06174801]
[1731817367309,37.06174801,232.14,232.02,37.06174801]
[1731817367797,37.06174801,232.1,232.0,37.06174801]
[1731817368198,37.06174801,232.12,232.0,37.06174801]
[1731817368418,24.12153862,232.21,231.95,70.0]
[1731817368419,37.06174801,232.14,232.02,37.06174801]
[1731817369004,37.06174801,232.18,232.08,37.06174801]
[1731817369202,37.06174801,232.2,232.08,37.06174801]
[1731817369428,37.06174801,232.18,232.08,37.06174801]
[1731817370209,37.06174801,232.28,232.17,37.06174801]
[1731817370410,37.06174801,232.26,232.01,70.0]
[1731817370720,37.06174801,232.28,232.17,37.06174801]
[1731817371020,37.06174801,232.26,232.17,37.06174801]
[1731817371223,37.06174801,232.26,232.15,37.06174801]
[1731817371603,37.06174801,232.26,232.17,37.06174801]
[1731817371807,4.3042,232.33,232.17,37.06174801]
[1731817371808,37.06174801,232.29,232.17,37.06174801]
[1731817372024,37.06174801,232.29,232.19,37.06174801]
[1731817372609,37.06174801,232.27,232.17,37.06174801]
[1731817372919,37.06174801,232.33,232.21,37.06174801]
[1731817374028,37.06174801,232.31,232.21,37.06174801]
[1731817374325,37.06174801,232.27,232.15,37.06174801]
[1731817374500,12.3907,232.34,232.15,37.06174801]
[1731817374501,37.06174801,232.25,232.15,37.06174801]
[1731817375307,37.06174801,232.27,232.15,37.06174801]
[1731817376029,37.06174801,232.29,232.17,37.06174801]
[1731817376228,37.28091263,232.27,232.15,37.06174801]
[1731817376426,37.06174801,232.31,232.19,37.06174801]
[1731817376622,37.06174801,232.27,232.17,37.06174801]
[1731817376834,37.06174801,232.27,232.15,37.06174801]
[1731817377132,13.0083,232.47,232.19,70.1]
[1731817377337,4.3018,232.46,232.19,70.1]
[1731817377633,0.09367462,232.42,232.16,0.1]
[1731817377811,4.3018,232.46,232.19,70.0]
[1731817378006,37.06174801,232.37,232.25,37.06174801]
[1731817378207,37.06174801,232.32,232.21,37.06174801]
[1731817378411,4.3018,232.46,232.25,37.06174801]
[1731817378412,37.06174801,232.36,232.25,37.06174801]
[1731817378828,37.06174801,232.38,232.25,37.06174801]
[1731817379634,37.06174801,232.38,232.28,37.06174801]
[1731817379811,24.12153862,232.39,232.28,37.06174801]
[1731817380427,0.34465462,232.35,232.24,37.06174801]
[1731817380615,37.06174801,232.38,232.26,37.06174801]
[1731817380814,23.776884,232.39,232.28,37.06174801]
[1731817381023,0.09367462,232.37,232.28,37.06174801]
[1731817381223,0.25098,232.38,232.28,37.06174801]
[1731817381431,37.06174801,232.44,232.32,37.06174801]
[1731817381634,37.06174801,232.41,232.3,37.06174801]
[1731817381927,37.06174801,232.43,232.3,37.06174801]
[1731817382132,37.06174801,232.43,232.32,37.06174801]
[1731817382328,13.0083,232.47,232.36,37.06174801]
[1731817382535,37.06174801,232.49,232.38,37.06174801]
[1731817382734,37.06174801,232.47,232.34,37.06174801]
[1731817382933,37.06174801,232.49,232.38,37.06174801]
[1731817383235,0.3585156,232.5,232.4,37.06174801]
[1731817383435,0.3585156,232.5,232.28,0.1]
[1731817383436,0.09367462,232.49,232.38,37.06174801]
[1731817383734,0.09367462,232.46,232.34,37.06174801]
[1731817383934,0.3585156,232.5,232.34,37.06174801]
[1731817383935,37.06174801,232.45,232.34,37.06174801]
[1731817384232,0.09367462,232.44,232.34,37.06174801]
[1731817384611,4.3012,232.49,232.26,37.06174801]
[1731817384612,37.06174801,232.49,232.38,37.06174801]
[1731817384813,0.3585156,232.5,232.45,37.06174801]
[1731817385617,0.3585156,232.5,232.47,37.06174801]
[1731817386131,0.3585156,232.5,232.46,37.06174801]
[1731817386443,0.3585156,232.5,232.48,37.06174801]
[1731817386936,8.07361063,232.76,232.49,107.18723801]
[1731817387109,37.16174801,232.89,232.74,37.06174801]
[1731817387315,37.06174801,232.89,232.76,37.06174801]
[1731817387517,37.06174801,232.93,232.66,70.1]
[1731817387718,37.06174801,232.93,232.8,37.06174801]
[1731817387915,37.06174801,232.91,232.8,37.06174801]
[1731817388225,37.06174801,232.93,232.8,37.06174801]
[1731817388526,4.2941,232.88,232.76,37.06174801]
[1731817388739,41.35524801,232.91,232.78,37.06174801]
[1731817389112,37.06174801,232.91,232.78,37.06174801]
[1731817389433,37.06174801,232.91,232.8,37.06174801]